bitfinex-derivatives/quotes_ETHF0:USTF0_20250104
["timestamp","ask_amount","ask_price","bid_price","bid_amount"]
[1736015028236,0.4433,3636.0,3635.9,4.5715204]
[1736015030234,1.4423106,3636.0,3635.9,4.5715204]
[1736015032237,1.7173706,3636.0,3635.9,4.2964504]
[1736015033529,0.27507,3635.9,3635.8,4.2964504]
[1736015033736,1.6848806,3635.9,3635.8,4.2964504]
[1736015035338,1.4098106,3635.9,3635.6,3.48289]
[1736015035540,0.27509,3635.7,3635.6,3.48289]
[1736015036334,0.27508,3635.8,3635.7,0.27508]
[1736015036938,0.4108,3635.9,3635.6,3.48289]
[1736015037233,0.69809,3635.7,3635.6,3.2078]
[1736015039043,1.6971006,3635.7,3635.6,3.2078]
[1736015041844,1.6971006,3635.7,3635.6,3.48289]
[1736015042238,1.6971006,3635.7,3635.6,3.2078]
[1736015043541,0.27509,3635.6,3635.5,0.2751]
[1736015043746,1.37909,3635.6,3635.5,0.2751]
[1736015048542,1.37909,3635.6,3635.3,3.2078]
[1736015048543,0.27511,3635.5,3635.4,0.27511]
[1736015048745,1.2741206,3635.5,3635.4,0.27511]
[1736015049652,0.9990106,3635.5,3635.4,0.27511]
[1736015049841,2.2731212,3635.5,3635.4,0.69611]
[1736015050144,1.2741106,3635.5,3635.4,0.27511]
[1736015051252,0.27511,3635.4,3635.3,3.2078]
[1736015051550,0.68651,3635.4,3635.3,3.48292]
[1736015052155,0.68651,3635.4,3635.3,3.2078]
[1736015052347,0.4114,3635.4,3635.3,3.48292]
[1736015053255,0.68651,3635.4,3635.3,3.2078]
[1736015053456,0.4114,3635.4,3635.3,3.48292]
[1736015054355,0.68651,3635.4,3635.3,3.48292]
[1736015056054,0.4114,3635.4,3635.3,3.48292]
[1736015058859,0.68651,3635.4,3635.3,3.48292]
[1736015060959,0.9990106,3635.5,3635.4,0.27511]
[1736015061158,1.3791,3635.6,3635.3,3.2078]
[1736015061351,3.24272649,3635.8,3635.7,0.27509]
[1736015061551,3.24272649,3635.8,3635.7,3.48289]
[1736015062563,0.9990106,3636.0,3635.9,0.27507]
[1736015064866,3.24272649,3636.5,3635.9,0.27507]
[1736015065061,3.24272649,3636.5,3636.4,0.27503]
[1736015065960,3.24272649,3636.5,3636.3,0.70604]
[1736015066268,1.37402,3636.6,3636.3,0.70604]
[1736015066269,0.9990106,3636.4,3636.3,0.70604]
[1736015067362,1.2740406,3636.4,3636.3,0.70604]
[1736015067664,0.9990106,3636.4,3636.3,0.70604]
[1736015072564,1.2740406,3636.4,3636.3,0.70604]
[1736015074463,1.2740406,3636.4,3636.2,3.91645]
[1736015074662,0.427,3636.3,3636.2,3.91645]
[1736015075173,0.427,3636.3,3636.2,3.48285]
[1736015079568,0.427,3636.3,3636.2,0.27505]
[1736015081975,0.427,3636.3,3636.2,3.48285]
[1736015084574,0.9990106,3636.4,3636.3,0.27504]
[1736015084969,0.4493,3636.8,3636.3,1.4449106]
[1736015085273,3.24272649,3637.0,3636.9,0.275]
[1736015085690,3.24272649,3637.0,3636.9,1.2740106]
[1736015086181,3.24272649,3637.0,3636.9,0.275]
[1736015086681,1.4366106,3637.3,3637.2,0.27497]
[1736015087277,1.7115806,3637.3,3637.1,0.27498]
[1736015087983,1.4366106,3637.3,3637.2,0.27497]
[1736015088283,1.7115806,3637.3,3637.1,0.27498]
[1736015088908,1.4366106,3637.3,3637.0,3.2078]
[1736015089104,1.4366106,3637.3,3637.2,0.27497]
[1736015098978,0.9990106,3637.5,3637.0,3.2078]
[1736015099178,0.9990106,3637.5,3637.4,0.27496]
[1736015106691,1.6864006,3637.5,3636.8,4.29852192]
[1736015106896,1.2740106,3636.9,3636.8,4.29852192]
[1736015107983,0.9990106,3636.9,3636.7,0.27501]
[1736015108289,0.9990106,3636.9,3636.5,3.2078]
[1736015108590,0.9990106,3636.6,3636.5,3.48283]
[1736015109297,1.57089,3637.0,3636.5,3.2078]
[1736015109523,1.2959,3637.0,3636.9,0.275]
[1736015109727,1.2959,3637.0,3636.9,3.4828]
[1736015110507,0.9990106,3637.5,3637.4,0.27496]
[1736015112214,1.2813,3637.6,3637.4,0.27496]
[1736015112410,0.27495,3637.5,3637.4,0.27496]
[1736015112612,0.27495,3637.5,3637.3,0.27496]
[1736015115202,2.21186142,3637.4,3637.1,3.2078]
[1736015115504,0.27498,3637.2,3637.0,0.27498]
[1736015115792,0.8695,3637.1,3637.0,0.27498]
[1736015115996,1.3072,3637.1,3637.0,0.27498]
[1736015116389,0.8603,3637.1,3637.0,0.27498]
[1736015117493,0.4226,3637.1,3637.0,0.27498]
[1736015117796,0.4377,3637.5,3637.4,0.27495]
[1736015117993,0.8603,3637.5,3637.4,0.27495]
[1736015119090,0.8603,3637.5,3637.3,0.27496]
[1736015119304,0.27496,3637.4,3637.2,0.27497]
[1736015119696,0.8603,3637.5,3636.9,3.2078]
[1736015120001,0.27498,3637.2,3637.0,0.27498]
[1736015120196,0.4455,3637.1,3637.0,0.27498]
[1736015120499,0.4455,3637.1,3636.9,3.2078]
[1736015120694,0.4455,3637.1,3636.5,3.2078]
[1736015120695,0.27502,3636.6,3636.5,3.2078]
[1736015121201,0.27502,3636.6,3636.5,3.48283]
[1736015121398,0.72052,3636.6,3636.5,3.48283]
[1736015121794,0.72052,3636.6,3636.5,3.2078]
[1736015122192,0.4455,3636.6,3636.5,3.48283]
[1736015126901,0.4455,3636.6,3636.5,7.77949883]
[1736015131503,0.4455,3636.6,3636.5,8.61882821]
[1736015132804,0.4455,3636.6,3636.5,15.06383145]
[1736015134009,3.36435142,3637.0,3636.5,14.78880145]
[1736015134203,3.78475142,3637.0,3636.8,0.275]
[1736015134605,3.50976142,3637.0,3636.5,8.34379821]
[1736015134808,3.50976142,3637.0,3636.9,0.275]
[1736015136504,1.2979,3637.0,3636.9,0.275]
[1736015140416,2.29627494,3637.0,3636.9,0.275]
[1736015142121,2.29627494,3637.0,3636.9,3.4828]
[1736015145624,0.8775,3637.0,3636.9,3.4828]
[1736015146020,0.8775,3637.0,3636.9,7.78166194]
[1736015146223,0.4316,3637.0,3636.9,7.78166194]
[1736015147217,0.4316,3637.0,3636.9,8.61549509]
[1736015147417,0.8741,3637.3,3637.2,0.27497]
[1736015149215,0.8741,3637.3,3637.1,4.29663751]
[1736015149417,1.27334494,3637.2,3637.1,4.29663751]
[1736015149921,0.275,3636.9,3636.8,4.57163751]
[1736015150519,0.6986,3636.9,3636.8,4.57163751]
[1736015150714,0.6986,3636.9,3636.8,4.29663751]
[1736015151315,0.275,3636.8,3636.7,4.29663751]
[1736015151621,0.6994,3636.8,3636.7,4.29663751]
[1736015151822,0.8694,3636.8,3636.7,4.57164751]
[1736015152118,1.1444,3636.8,3636.7,4.29663751]
[1736015152319,0.8694,3636.8,3636.7,4.29663751]
[1736015152521,0.8694,3636.8,3636.7,4.57164751]
[1736015152911,1.1444,3636.8,3636.7,4.57164751]
[1736015153116,0.8694,3636.8,3636.7,4.57164751]
[1736015156215,1.1444,3636.8,3636.7,4.57164751]
[1736015157624,0.8694,3636.8,3636.7,4.57164751]
[1736015158030,0.8694,3636.8,3636.7,4.29663751]
[1736015158230,0.8694,3636.8,3636.7,4.57164751]
[1736015159528,1.1444,3636.8,3636.7,4.29663751]
[1736015159827,0.8694,3636.8,3636.7,4.29663751]
[1736015160129,3.24030166,3637.0,3636.9,0.275]
[1736015160341,3.24030166,3637.0,3636.9,3.4828]
[1736015162033,4.36037166,3637.3,3637.1,0.27498]
[1736015162233,4.08540166,3637.3,3637.1,0.27498]
[1736015162455,4.36037166,3637.3,3636.9,14.78783738]
[1736015162633,4.36037166,3637.3,3637.1,0.27498]
[1736015164541,4.08540166,3637.3,3637.2,0.27497]
[1736015164738,4.08540166,3637.3,3637.0,4.29909221]
[1736015164939,0.27498,3637.2,3637.1,0.27498]
[1736015165733,4.08540166,3637.3,3637.1,0.27498]
[1736015165936,4.08540166,3637.3,3637.2,0.27497]
[1736015166939,0.27497,3637.2,3637.1,4.57407221]
[1736015167142,0.27497,3637.2,3637.1,4.29909221]
[1736015167345,2.48751118,3637.2,3637.1,4.29909221]
[1736015167645,2.48751118,3637.2,3637.1,4.57407221]
[1736015168038,0.27498,3637.1,3637.0,4.29909221]
[1736015168439,0.27498,3637.1,3637.0,4.57408221]
[1736015169339,0.27498,3637.1,3637.0,0.27499]
[1736015170847,0.275,3636.9,3636.8,4.57409221]
[1736015171547,0.27499,3637.0,3636.9,0.275]
[1736015171844,0.275,3636.9,3636.8,4.57409221]
[1736015172645,0.4299,3636.9,3636.8,4.57409221]
[1736015174950,3.24552408,3637.0,3636.9,0.275]
[1736015175351,3.24552408,3637.0,3636.9,0.6913]
[1736015175547,3.24552408,3637.0,3636.9,3.8991]
[1736015177141,4.51252408,3637.3,3637.2,0.27497]
[1736015177550,4.78749408,3637.3,3637.2,0.27497]
[1736015178247,4.51252408,3637.3,3637.2,0.27497]
[1736015178754,4.51252408,3637.3,3637.2,4.57259355]
[1736015179459,4.78749408,3637.3,3637.2,4.57259355]
[1736015179651,4.51252408,3637.3,3637.2,4.57259355]
[1736015179955,1.267,3637.3,3637.2,4.57259355]
[1736015182649,3.24552408,3637.4,3637.2,4.29762355]
[1736015182952,3.24552408,3637.4,3637.3,0.27497]
[1736015183153,3.24552408,3637.5,3637.3,0.4318]
[1736015183354,3.24552408,3637.5,3637.4,0.69776]
[1736015183953,3.24552408,3637.5,3637.4,2.91030118]
[1736015184256,1.45342408,3637.5,3637.4,6.69541638]
[1736015184561,1.45342408,3637.7,3637.6,0.27494]
[1736015184768,1.21682408,3637.7,3637.6,1.27259638]
[1736015185057,1.21682408,3637.7,3637.6,6.27259638]
[1736015186154,2.27415638,3638.6,3638.5,0.27487]
[1736015186350,1.2765,3638.6,3638.5,0.27487]
[1736015186855,1.2765,3638.6,3638.2,3.2078]
[1736015187060,1.2765,3638.6,3638.5,0.27487]
[1736015188657,0.4441,3638.6,3638.5,0.27487]
[1736015189255,0.8549,3639.0,3638.9,0.27484]
[1736015190563,0.8549,3639.0,3638.7,3.2078]
[1736015190564,0.2748,3639.5,3639.2,0.27482]
[1736015190761,1.2619,3639.4,3639.2,0.27482]
[1736015190961,1.2619,3639.4,3639.3,0.27481]
[1736015195964,1.2619,3639.4,3638.6,3.48266]
[1736015195965,0.27485,3638.9,3638.6,3.48266]
[1736015196161,1.2727,3638.8,3638.6,3.48266]
[1736015199069,1.2727,3638.8,3638.6,3.2078]
[1736015199270,1.2727,3638.8,3638.7,0.27486]
[1736015201774,1.2727,3638.8,3638.3,0.27489]
[1736015201775,0.27486,3638.7,3638.3,0.27489]
[1736015201973,0.27487,3638.7,3638.4,0.27488]
[1736015203073,0.27487,3638.7,3638.5,0.27487]
[1736015203866,1.2727,3638.8,3638.2,3.2078]
[1736015204063,0.27486,3638.7,3638.4,0.27488]
[1736015204475,0.27486,3638.7,3638.2,3.2078]
[1736015204672,0.27486,3638.7,3638.5,0.27487]
[1736015206576,1.54756,3638.8,3638.6,0.27486]
[1736015207774,1.2727,3638.8,3638.2,3.2078]
[1736015208675,1.54756,3638.8,3638.6,0.27486]
[1736015208877,1.2727,3638.8,3638.6,0.27486]
[1736015209674,1.2727,3638.8,3638.2,3.2078]
[1736015209976,1.54756,3638.8,3638.6,0.27487]
[1736015211276,0.27486,3638.7,3638.5,0.27487]
[1736015211778,0.27489,3638.3,3638.2,3.2078]
[1736015211974,0.2749,3638.2,3638.0,0.27491]
[1736015212481,1.08,3638.4,3638.2,0.2749]
[1736015212482,1.35489,3638.4,3638.2,0.2749]
[1736015214380,1.08,3638.4,3637.7,3.2078]
[1736015214587,1.35488,3638.4,3638.2,0.27489]
[1736015215184,1.3173,3638.3,3638.2,0.27489]
[1736015215481,1.3173,3638.3,3637.7,3.2078]
[1736015215682,1.3173,3638.3,3638.2,0.2749]
[1736015216378,1.59219,3638.3,3638.1,0.2749]
[1736015216585,1.3173,3638.3,3638.1,0.2749]
[1736015216776,1.3173,3638.3,3637.7,3.2078]
[1736015216980,1.3173,3638.3,3638.2,0.2749]
[1736015218882,1.3173,3638.3,3637.7,3.2078]
[1736015219087,1.3173,3638.3,3638.2,0.2749]
[1736015219589,1.59219,3638.3,3638.1,0.2749]
[1736015219783,1.3173,3638.3,3638.2,0.2749]
[1736015220782,1.3173,3638.3,3637.7,3.2078]
[1736015220984,1.3173,3638.3,3638.2,0.2749]
[1736015226196,2.31497527,3638.3,3638.2,0.2749]
[1736015227995,1.08,3638.5,3638.4,0.27488]
[1736015228194,5.28547527,3638.8,3638.7,0.27486]
[1736015228899,5.56032527,3638.8,3638.7,0.27486]
[1736015229101,5.28547527,3638.8,3638.7,0.27486]
[1736015231209,4.2878,3638.8,3638.7,0.27486]
[1736015231504,3.2078,3638.8,3638.7,0.27486]
[1736015231698,1.85227527,3639.0,3638.5,0.99767527]
[1736015231895,1.85227527,3639.0,3638.9,0.27484]
[1736015232198,0.8546,3639.0,3638.9,0.27484]
[1736015232602,0.4201,3639.1,3638.5,3.2078]
[1736015232798,0.4201,3639.1,3639.0,0.27484]
[1736015234296,3.4826,3639.6,3638.8,0.4404]
[1736015234297,0.4183,3639.4,3638.8,0.4404]
[1736015234495,0.4183,3639.4,3639.3,0.27481]
[1736015235289,0.4183,3639.4,3638.8,0.4404]
[1736015235494,0.69311,3639.4,3639.2,0.27482]
[1736015235695,0.69311,3639.4,3638.8,0.4404]
[1736015235903,0.69311,3639.4,3639.2,0.27482]
[1736015236204,0.69311,3639.4,3639.1,0.27483]
[1736015236500,0.4183,3639.4,3638.8,0.4404]
[1736015236698,0.69311,3639.4,3639.1,0.27483]
[1736015237499,0.4183,3639.4,3639.2,0.27482]
[1736015238494,0.4183,3639.4,3638.8,0.4404]
[1736015238701,0.4183,3639.4,3639.3,0.27481]
[1736015242208,3.2078,3639.6,3639.5,0.2748]
[1736015242812,4.32040222,3639.9,3639.5,2.20974761]
[1736015243103,4.32040222,3639.9,3639.8,0.27478]
[1736015244402,0.4122,3640.0,3639.5,2.20974761]
[1736015244598,0.4122,3640.0,3639.9,0.27477]
[1736015246503,0.4122,3640.0,3639.5,4.70238163]
[1736015246504,0.4122,3640.0,3639.5,4.55807163]
[1736015246706,0.27479,3639.7,3639.4,4.55808163]
[1736015248008,0.27478,3639.7,3639.5,0.2748]
[1736015248202,6.49754761,3639.8,3639.4,4.28328163]
[1736015248514,2.20974761,3639.5,3639.2,0.27482]
[1736015248709,1.13031,3639.4,3639.2,0.27482]
[1736015248906,1.56291,3639.4,3639.2,0.27482]
[1736015249304,1.2881,3639.4,3638.9,4.28328163]
[1736015249810,1.56291,3639.4,3639.3,0.27481]
[1736015250011,1.2881,3639.4,3639.3,0.27481]
[1736015253804,0.8796,3639.4,3639.3,0.27481]
[1736015254004,0.8796,3639.4,3638.9,2.20974761]
[1736015254005,0.4066,3639.7,3639.6,0.27479]
[1736015255018,1.08,3639.9,3639.8,0.27478]
[1736015255216,1.2947,3640.0,3639.9,0.27477]
[1736015257114,1.56946,3640.0,3639.9,0.27477]
[1736015257413,0.27477,3639.9,3639.8,0.27477]
[1736015257605,1.2947,3640.0,3639.4,0.2748]
[1736015257805,0.2748,3639.5,3639.4,0.2748]
[1736015258214,4.56259,3639.7,3639.5,0.27479]
[1736015258414,0.27479,3639.6,3639.5,0.27479]
[1736015259814,4.2878,3639.7,3638.9,3.30766761]
[1736015260016,0.2748,3639.6,3639.5,0.2748]
[1736015262116,1.08,3639.7,3639.6,0.27479]
[1736015267019,1.08,3639.7,3639.4,0.4344]
[1736015267020,1.08,3639.7,3639.0,4.28328163]
[1736015267222,0.27481,3639.4,3639.3,0.27481]
[1736015267926,0.2748,3639.5,3639.3,0.27481]
[1736015268121,0.8497,3639.4,3639.3,0.27481]
[1736015268422,1.258,3639.4,3639.3,0.27481]
[1736015268922,1.53281,3639.4,3639.2,0.27482]
[1736015269722,1.258,3639.4,3639.3,0.27481]
[1736015270519,1.258,3639.4,3638.8,7.90748163]
[1736015270726,1.53281,3639.4,3638.9,0.27484]
[1736015270922,1.258,3639.4,3639.3,0.27481]
[1736015274730,0.27479,3639.6,3639.4,0.2748]
[1736015274931,0.71609,3639.6,3639.4,0.2748]
[1736015276727,0.71609,3639.6,3639.3,4.71738163]
[1736015276728,0.2748,3639.5,3639.3,4.71738163]
[1736015276924,0.2748,3639.5,3639.4,0.27481]
[1736015277334,0.4413,3639.6,3639.4,0.27481]
[1736015277524,0.7161,3639.6,3639.4,0.27481]
[1736015278035,0.7161,3639.6,3639.4,4.55809163]
[1736015279230,0.7161,3639.6,3639.4,4.28328163]
[1736015279432,0.7161,3639.6,3639.5,0.2748]
[1736015282133,0.2748,3639.5,3639.4,4.55808163]
[1736015282733,0.7161,3639.6,3639.5,0.2748]
[1736015284333,0.4413,3639.6,3639.4,4.28328163]
[1736015284528,0.2748,3639.5,3639.4,4.55808163]
[1736015286736,3.95055019,3639.6,3639.5,0.2748]
[1736015287738,0.7161,3639.6,3639.5,0.2748]
[1736015290340,3.95055019,3639.6,3639.5,0.2748]
[1736015291329,3.67575019,3639.6,3639.5,0.2748]
[1736015292735,3.23445019,3639.6,3639.5,0.7229]
[1736015293538,3.23445019,3639.6,3639.5,0.2748]
[1736015293745,3.50924019,3639.6,3639.5,0.2748]
[1736015294042,3.23445019,3639.6,3639.5,0.2748]
[1736015294445,3.50924019,3639.7,3639.5,4.28328163]
[1736015294646,3.50924019,3639.7,3639.6,0.27479]
[1736015295042,3.23445019,3639.7,3639.6,0.27479]
[1736015295737,3.50923019,3639.7,3639.6,0.27479]
[1736015296236,3.50923019,3639.7,3639.6,4.55807163]
[1736015297246,3.23445019,3639.7,3639.6,4.55807163]
[1736015297444,3.23445019,3639.7,3639.6,0.27479]
[1736015298546,3.50923019,3639.8,3639.7,0.27478]
[1736015299750,0.27478,3639.8,3639.7,0.27478]
[1736015300751,8.35870222,3639.9,3639.6,4.28328163]
[1736015300939,4.0383,3639.9,3639.8,0.27478]
[1736015302440,0.8305,3639.9,3639.8,0.27478]
[1736015303248,4.07407739,3639.9,3639.8,4.55806163]
[1736015304149,4.34884739,3639.9,3639.8,4.55806163]
[1736015307065,4.34884739,3639.9,3639.8,0.27478]
[1736015308669,1.10527,3639.9,3639.8,0.27478]
[1736015309565,0.27478,3639.7,3639.6,4.55806163]
[1736015309767,0.27478,3639.7,3639.6,4.28328163]
[1736015310769,0.27478,3639.7,3639.6,1.05028163]
[1736015311072,0.27479,3639.6,3639.5,4.29241832]
[1736015312072,5.27479,3639.6,3639.5,4.29241832]
[1736015312573,0.27484,3638.9,3638.8,0.27485]
[1736015313269,0.27484,3638.9,3638.7,0.72075]
[1736015313668,0.27484,3638.9,3638.8,0.27485]
[1736015314372,0.27485,3638.8,3638.7,0.72076]
[1736015316472,2.43504908,3638.8,3638.7,0.72076]
[1736015317167,2.43504908,3638.8,3638.7,0.4459]
[1736015318675,2.43504908,3638.8,3638.5,0.4447]
[1736015318676,2.16019908,3638.8,3638.5,0.71957]
[1736015318975,2.16019908,3638.8,3638.5,0.4447]
[1736015318976,0.27487,3638.6,3638.5,0.4447]
[1736015320878,3.51580747,3638.6,3638.5,0.4447]
[1736015322271,2.43230668,3638.6,3638.5,0.4447]
[1736015324678,0.27487,3638.6,3638.5,0.4447]
[1736015328281,1.27252025,3638.6,3638.5,0.4447]
[1736015331285,0.99765025,3638.6,3638.3,0.4466]
[1736015331584,1.27253025,3638.4,3638.3,0.4466]
[1736015334780,1.27253025,3638.4,3638.3,0.72149]
[1736015338283,0.27488,3638.5,3638.4,0.27488]
[1736015340580,2.07765025,3638.6,3638.3,0.4466]
[1736015340784,1.35488,3638.6,3638.5,0.27487]
[1736015341085,2.35253025,3638.6,3638.5,0.27487]
[1736015344890,3.2078,3638.8,3638.3,1.44425025]
[1736015344891,4.20545025,3638.8,3638.3,1.44425025]
[1736015345095,4.20545025,3638.8,3638.7,0.27486]
[1736015345787,0.99765025,3638.8,3638.7,0.27486]
[1736015347389,1.27250025,3638.8,3638.7,0.27486]
[1736015348387,0.99765025,3638.8,3638.7,0.27486]
[1736015350100,4.20545025,3638.8,3638.6,0.69737]
[1736015350400,0.27486,3638.7,3638.6,0.69737]
[1736015351298,0.99765025,3638.8,3638.7,0.27486]
[1736015351299,1.27251025,3638.8,3638.7,0.27486]
[1736015353792,0.27486,3638.7,3638.6,0.4225]
[1736015354596,2.43229668,3638.7,3638.6,0.4225]
[1736015356091,0.27486,3638.7,3638.6,0.4225]
[1736015362700,4.59790467,3638.7,3638.6,0.4225]
[1736015366298,0.27488,3638.4,3638.3,0.72149]
[1736015366496,1.27253025,3638.4,3638.3,0.72149]
[1736015366703,1.27253025,3638.4,3638.3,0.4466]
[1736015367300,1.27253025,3638.4,3638.3,0.72149]
[1736015367805,0.2749,3638.2,3638.1,0.714]
[1736015369705,3.24352688,3638.3,3638.1,0.4391]
[1736015369922,0.99765025,3638.2,3638.1,0.714]
[1736015370709,1.27255025,3638.2,3638.1,0.4391]
[1736015371008,3.43479356,3638.2,3638.1,0.4391]
[1736015372400,5.59559492,3638.2,3638.1,0.4391]
[1736015375110,1.27255025,3638.2,3638.1,0.4391]
[1736015379141,1.27255025,3638.2,3637.9,0.70412]
[1736015379142,0.27491,3638.0,3637.9,0.70412]
[1736015379313,1.27256025,3638.0,3637.9,0.4292]
[1736015380512,1.27256025,3638.0,3637.9,0.70412]
[1736015382614,1.27256025,3638.0,3637.9,0.4292]
[1736015382808,1.27256025,3638.0,3637.7,0.4433]
[1736015382809,0.27493,3637.8,3637.7,0.4433]
[1736015383018,1.27258025,3637.8,3637.7,0.4433]
[1736015384319,5.59562492,3637.8,3637.7,0.4433]
[1736015385726,4.51231512,3637.8,3637.7,0.4433]
[1736015387616,4.51231512,3637.8,3636.7,0.27501]
[1736015387617,0.27499,3637.0,3636.7,0.27501]
[1736015387824,2.35264025,3637.0,3636.8,0.8284]
[1736015388723,0.275,3636.9,3636.8,0.8284]
[1736015389021,0.99765025,3636.9,3636.4,6.44631326]
[1736015389226,1.27268025,3636.5,3636.4,6.44631326]
[1736015390018,1.27268025,3636.5,3636.3,0.4076]
[1736015390019,0.27503,3636.4,3636.3,0.4076]
[1736015394323,2.4886192,3636.4,3636.3,0.4076]
[1736015399533,1.08,3636.4,3636.3,0.68264]
[1736015399727,5.4213892,3636.7,3636.3,0.4076]
[1736015399928,5.4213892,3636.7,3636.6,0.27502]
[1736015400229,3.2078,3636.7,3636.6,0.27502]
[1736015400832,2.5339,3636.7,3636.6,0.27502]
[1736015401338,0.275,3636.9,3636.7,0.27501]
[1736015401730,0.275,3636.9,3636.8,0.275]
[1736015402932,5.4213892,3637.1,3636.5,0.4441]
[1736015403535,0.275,3636.9,3636.8,0.275]
[1736015404231,0.27499,3637.0,3636.9,0.27499]
[1736015407537,0.27499,3637.0,3636.5,0.4441]
[1736015408042,0.27499,3637.0,3636.9,0.275]
[1736015408734,2.2135892,3637.1,3636.5,0.4441]
[1736015408938,0.27502,3636.6,3636.5,0.4441]
[1736015409939,0.27502,3636.6,3636.5,0.71913]
[1736015410940,0.27502,3636.6,3636.5,0.4441]
[1736015411930,0.27501,3636.7,3636.6,0.27502]
[1736015412128,2.2135892,3637.0,3636.5,0.4441]
[1736015412331,0.275,3636.9,3636.8,0.275]
[1736015416340,0.27497,3637.3,3637.2,0.27497]
[1736015416540,2.15915552,3637.5,3637.1,3.2078]
[1736015416742,2.43410552,3637.5,3637.4,0.27496]
[1736015417346,0.27497,3637.4,3637.3,0.27496]
[1736015417546,0.27497,3637.4,3637.2,1.2784]
[1736015417547,2.43410552,3637.5,3637.4,0.27496]
[1736015417842,0.27495,3637.5,3637.4,0.27496]
[1736015418054,0.27496,3637.4,3637.3,0.27496]
[1736015418441,0.27496,3637.4,3637.2,1.2784]
[1736015418442,2.2135892,3637.6,3637.2,1.2784]
[1736015418741,0.27495,3637.5,3637.4,0.27495]
[1736015419941,2.2135892,3637.6,3637.4,0.27495]
[1736015420244,2.4885392,3637.6,3637.3,0.27497]
[1736015420445,2.4885392,3637.6,3637.4,0.27495]
[1736015420446,2.2135892,3637.6,3637.4,0.27495]
[1736015420646,0.27495,3637.5,3637.4,0.27495]
[1736015421147,0.27496,3637.4,3637.3,0.27496]
[1736015422647,2.2135892,3637.6,3637.2,1.2784]
[1736015422854,2.4885392,3637.6,3637.2,1.2784]
[1736015423049,2.2135892,3637.6,3637.4,0.27495]
[1736015423251,2.2135892,3637.6,3637.5,0.27495]
[1736015424342,1.4968,3637.8,3637.2,1.2784]
[1736015424544,1.4968,3637.8,3637.7,0.27494]
[1736015424840,2.2135892,3637.9,3637.8,0.27493]
[1736015425849,5.36695552,3638.1,3637.3,0.68742]
[1736015426043,5.36695552,3638.1,3638.0,0.27491]
[1736015427147,3.2078,3638.1,3638.0,0.27491]
[1736015429550,3.4827,3638.1,3638.0,0.27491]
[1736015430153,0.2749,3638.1,3638.0,0.27491]
[1736015430454,2.6199892,3638.2,3637.7,3.2078]
[1736015430645,0.27492,3637.9,3637.8,0.27492]
[1736015430849,0.27492,3637.9,3637.8,1.14402]
[1736015431050,0.27492,3637.9,3637.8,1.56812]
[1736015432551,5.64184552,3638.4,3637.8,1.2932]
[1736015432750,5.64184552,3638.4,3638.3,0.27489]
[1736015432951,2.43404552,3638.4,3638.3,0.27489]
[1736015433555,0.27489,3638.4,3638.3,0.27489]
[1736015435553,2.6207892,3638.5,3637.8,1.2932]
[1736015435756,0.2749,3638.3,3638.2,0.27489]
[1736015436359,0.27491,3638.1,3638.0,0.27491]
[1736015436656,2.6207892,3638.5,3638.1,0.2749]
[1736015436657,0.2749,3638.2,3638.1,0.2749]
[1736015436862,0.27492,3638.0,3637.9,0.27492]
[1736015439758,0.27492,3637.9,3637.8,1.2932]
[1736015439958,0.27494,3637.6,3637.5,3.2078]
[1736015440560,0.27497,3637.3,3637.2,1.52726]
[1736015440755,0.27497,3637.3,3637.2,0.4385]
[1736015442056,0.27499,3637.0,3636.9,3.48279]
[1736015442259,0.27499,3637.0,3636.9,0.27499]
[1736015443663,0.4208,3637.2,3636.8,0.4071]
[1736015443967,0.27498,3637.1,3637.0,0.27499]
[1736015444366,0.4208,3637.2,3636.8,0.4071]
[1736015444561,2.2135892,3637.0,3636.6,0.4108]
[1736015444774,0.27501,3636.8,3636.7,0.27501]
[1736015445884,0.27501,3636.8,3636.6,0.4108]
[1736015446073,0.27501,3636.8,3636.7,0.27501]
[1736015446272,0.27501,3636.7,3636.6,0.4108]
[1736015446470,0.68911,3636.7,3636.6,0.68582]
[1736015446673,0.27503,3636.4,3636.3,4.28277846]
[1736015446873,0.27503,3636.4,3636.2,4.71567846]
[1736015447065,0.27503,3636.4,3636.2,4.99072846]
[1736015448768,0.27503,3636.4,3636.2,0.70795]
[1736015449170,2.6276892,3636.7,3636.2,0.70795]
[1736015449379,2.2135892,3636.4,3636.0,0.8546]
[1736015449569,2.4886292,3636.4,3636.2,0.27505]
[1736015449772,2.2135892,3636.4,3635.7,7.49057846]
[1736015449976,0.27508,3635.9,3635.7,3.48288]
[1736015450178,0.27508,3635.9,3635.7,3.89988]
[1736015450578,0.27508,3635.9,3635.8,0.27508]
[1736015451179,2.2135892,3636.1,3635.7,3.6248]
[1736015451479,0.27508,3635.8,3635.7,3.6248]
[1736015451777,0.27512,3635.3,3635.2,3.2078]
[1736015451988,0.27512,3635.2,3635.1,4.28277846]
[1736015452589,0.69402,3635.2,3635.1,4.28277846]
[1736015452777,3.90182,3635.2,3635.1,2.26167846]
[1736015453081,3.90182,3635.2,3635.1,1.96167846]
[1736015453384,3.2078,3635.2,3634.3,1.96167846]
[1736015453679,0.27518,3634.6,3634.3,2.23686846]
[1736015453880,0.27518,3634.5,3634.3,1.96167846]
[1736015454487,0.27518,3634.4,3634.3,1.96167846]
[1736015454674,2.2135892,3634.4,3634.2,0.8679]
[1736015454879,0.27519,3634.3,3634.2,0.8679]
[1736015456481,0.27519,3634.3,3634.2,0.4248]
[1736015456877,0.27523,3633.9,3633.6,3.48304]
[1736015457083,2.2135892,3633.7,3633.6,3.48304]
[1736015458171,3.5688292,3633.7,3633.6,3.2078]
[1736015458587,1.08,3634.1,3633.4,0.4118]
[1736015458782,1.08,3634.1,3633.6,3.2078]
[1736015458980,1.08,3634.1,3634.0,0.27522]
[1736015459872,2.2135892,3634.3,3633.6,3.2078]